[Event "Live Chess"]
[Site "Chess.com"]
[Date "2023.05.21"]
[Round "-"]
[White "LodeshChess"]
[Black "blowerd"]
[Result "1-0"]
[WhiteElo "1176"]
[BlackElo "1366"]
[TimeControl "300"]
[EndTime "18:04:31 PDT"]
[Termination "LodeshChess won on time"]

1. e4 {[%clk 0:04:57.7]} 1... e5 {[%clk 0:04:58.5]} 2. Nf3 {[%clk 0:04:56.6]}
2... Nc6 {[%clk 0:04:57]} 3. c3 {[%clk 0:04:56.1]} 3... Bc5 {[%clk 0:04:54.7]}
4. d4 {[%clk 0:04:55.4]} 4... exd4 {[%clk 0:04:53.5]} 5. cxd4 {[%clk 0:04:55.1]}
5... Bb6 {[%clk 0:04:50.5]} 6. Nc3 {[%clk 0:04:52.4]} 6... Nge7 {[%clk
0:04:45.5]} 7. Bd3 {[%clk 0:04:50]} 7... d6 {[%clk 0:04:44.2]} 8. O-O {[%clk
0:04:46.3]} 8... Bg4 {[%clk 0:04:42.1]} 9. h3 {[%clk 0:04:37.7]} 9... Bxf3
{[%clk 0:04:40.4]} 10. Qxf3 {[%clk 0:04:36.8]} 10... Nxd4 {[%clk 0:04:39.3]} 11.
Qh5 {[%clk 0:04:26.4]} 11... g6 {[%clk 0:04:31.5]} 12. Qh6 {[%clk 0:04:22.9]}
12... Qd7 {[%clk 0:04:27.4]} 13. Bg5 {[%clk 0:04:03.9]} 13... O-O-O {[%clk
0:04:23.1]} 14. Bxe7 {[%clk 0:03:47.4]} 14... Qxe7 {[%clk 0:04:17]} 15. Nd5
{[%clk 0:03:39]} 15... Qe5 {[%clk 0:03:58.3]} 16. Nxb6+ {[%clk 0:03:28.3]} 16...
axb6 {[%clk 0:03:52.5]} 17. b3 {[%clk 0:03:13.4]} 17... Kb8 {[%clk 0:03:25.6]}
18. Rfe1 {[%clk 0:03:10.9]} 18... c5 {[%clk 0:03:16.4]} 19. Bc4 {[%clk
0:02:47.2]} 19... Nc2 {[%clk 0:03:12.7]} 20. Bd5 {[%clk 0:02:41.5]} 20... Nxa1
{[%clk 0:03:08.5]} 21. Qd2 {[%clk 0:02:27.2]} 21... f5 {[%clk 0:02:47.9]} 22. f3
{[%clk 0:02:22]} 22... Qd4+ {[%clk 0:02:44.4]} 23. Qxd4 {[%clk 0:02:20.1]} 23...
cxd4 {[%clk 0:02:43.3]} 24. Rxa1 {[%clk 0:02:19.6]} 24... fxe4 {[%clk
0:02:39.7]} 25. fxe4 {[%clk 0:02:18.1]} 25... Rc8 {[%clk 0:02:30.4]} 26. Rd1
{[%clk 0:02:15.5]} 26... Rc2 {[%clk 0:02:23.6]} 27. a4 {[%clk 0:02:14.7]} 27...
Rhc8 {[%clk 0:02:10.1]} 28. Rxd4 {[%clk 0:02:13.7]} 28... Rc1+ {[%clk
0:02:08.2]} 29. Kh2 {[%clk 0:02:12.4]} 29... R1c5 {[%clk 0:02:00.1]} 30. Rb4
{[%clk 0:02:06.5]} 30... Ka7 {[%clk 0:01:52.2]} 31. Kg3 {[%clk 0:01:54.7]} 31...
Rf8 {[%clk 0:01:47.7]} 32. Kg4 {[%clk 0:01:50.1]} 32... Re8 {[%clk 0:01:37.5]}
33. Kg5 {[%clk 0:01:46.7]} 33... Re5+ {[%clk 0:01:27.2]} 34. Kh6 {[%clk
0:01:43.4]} 34... Rh5+ {[%clk 0:01:18.7]} 35. Kg7 {[%clk 0:01:42.4]} 35... Rc7+
{[%clk 0:01:05]} 36. Kf6 {[%clk 0:01:34.9]} 36... Re5 {[%clk 0:00:57.5]} 37. g4
{[%clk 0:01:19.3]} 37... Rc3 {[%clk 0:00:53.4]} 38. Kg7 {[%clk 0:01:11.7]} 38...
Rxh3 {[%clk 0:00:51.4]} 39. a5 {[%clk 0:00:59.6]} 39... bxa5 {[%clk 0:00:45.5]}
40. Rxb7+ {[%clk 0:00:58.6]} 40... Ka6 {[%clk 0:00:43.3]} 41. Rd7 {[%clk
0:00:53.9]} 41... Rxd5 {[%clk 0:00:37.4]} 42. exd5 {[%clk 0:00:52]} 42... Rxb3
{[%clk 0:00:35.7]} 43. Rxd6+ {[%clk 0:00:50.8]} 43... Kb5 {[%clk 0:00:34.1]} 44.
Kxh7 {[%clk 0:00:46.7]} 44... Kc5 {[%clk 0:00:31.8]} 45. Rd8 {[%clk 0:00:44.8]}
45... g5 {[%clk 0:00:24.6]} 46. Kg6 {[%clk 0:00:39]} 46... Rd3 {[%clk
0:00:19.9]} 47. Ra8 {[%clk 0:00:35.1]} 47... Rxd5 {[%clk 0:00:17.8]} 48. Rxa5+
{[%clk 0:00:34.1]} 48... Kd4 {[%clk 0:00:12.3]} 49. Rxd5+ {[%clk 0:00:33.4]}
49... Kxd5 {[%clk 0:00:11.5]} 50. Kxg5 {[%clk 0:00:33]} 50... Ke6 {[%clk
0:00:10.7]} 51. Kh6 {[%clk 0:00:32.5]} 51... Kf7 {[%clk 0:00:09]} 52. Kh7 {[%clk
0:00:31.8]} 52... Kf6 {[%clk 0:00:07.9]} 53. Kh6 {[%clk 0:00:30.6]} 53... Kf7
{[%clk 0:00:06.7]} 54. g5 {[%clk 0:00:26.6]} 54... Kf8 {[%clk 0:00:03.8]} 55.
Kg6 {[%clk 0:00:25.9]} 55... Kg8 {[%clk 0:00:02.8]} 56. Kf6 {[%clk 0:00:25.4]}
56... Kh8 {[%clk 0:00:00.8]} 57. Kg6 {[%clk 0:00:25]} 1-0

[Event "Live Chess"]
[Site "Chess.com"]
[Date "2023.05.21"]
[Round "-"]
[White "luckywookie"]
[Black "Duke_of_Bebington"]
[Result "0-1"]
[WhiteElo "756"]
[BlackElo "1584"]
[TimeControl "300"]
[EndTime "18:04:37 PDT"]
[Termination "Duke_of_Bebington won on time"]

1. e4 {[%clk 0:04:55.4]} 1... e5 {[%clk 0:04:55.8]} 2. Be2 {[%clk 0:04:52.6]}
2... Nf6 {[%clk 0:04:50.1]} 3. Nf3 {[%clk 0:04:51.3]} 3... Nc6 {[%clk
0:04:45.9]} 4. O-O {[%clk 0:04:50.6]} 4... Bc5 {[%clk 0:04:43.6]} 5. h3 {[%clk
0:04:50.3]} 5... O-O {[%clk 0:04:41.9]} 6. Nc3 {[%clk 0:04:49.6]} 6... d6 {[%clk
0:04:31.3]} 7. d3 {[%clk 0:04:40.4]} 7... h6 {[%clk 0:04:27]} 8. Nd5 {[%clk
0:04:22.1]} 8... Nxd5 {[%clk 0:04:05.3]} 9. exd5 {[%clk 0:04:20.1]} 9... Ne7
{[%clk 0:04:04.4]} 10. c3 {[%clk 0:03:50.2]} 10... Nxd5 {[%clk 0:04:01.8]} 11.
d4 {[%clk 0:03:47]} 11... exd4 {[%clk 0:03:46.5]} 12. cxd4 {[%clk 0:03:40.9]}
12... Bb6 {[%clk 0:03:37]} 13. Bd3 {[%clk 0:03:10.5]} 13... Qf6 {[%clk
0:03:22.9]} 14. Re1 {[%clk 0:03:01.9]} 14... Bd7 {[%clk 0:03:13.2]} 15. Be4
{[%clk 0:02:37.1]} 15... Bc6 {[%clk 0:03:04.8]} 16. Be3 {[%clk 0:01:48.7]} 16...
Nxe3 {[%clk 0:02:46.7]} 17. Rxe3 {[%clk 0:01:45.9]} 17... Bxe4 {[%clk
0:02:37.1]} 18. Rxe4 {[%clk 0:01:36.4]} 18... Rfe8 {[%clk 0:02:35.3]} 19. Rxe8+
{[%clk 0:01:34.1]} 19... Rxe8 {[%clk 0:02:33.4]} 20. Qd2 {[%clk 0:01:20.5]}
20... a6 {[%clk 0:02:17.5]} 21. Rc1 {[%clk 0:01:06]} 21... Re4 {[%clk
0:02:09.4]} 22. Re1 {[%clk 0:00:27.3]} 22... Rxe1+ {[%clk 0:01:31]} 23. Qxe1
{[%clk 0:00:20.6]} 23... Kf8 {[%clk 0:01:28.6]} 24. Qd2 {[%clk 0:00:16.5]} 24...
Qe6 {[%clk 0:01:23.3]} 25. Kf1 {[%clk 0:00:10.2]} 25... Qxa2 {[%clk 0:01:20.8]}
26. Ke2 {[%clk 0:00:08.6]} 26... Qc4+ {[%clk 0:01:16.6]} 27. Kd1 {[%clk
0:00:04.4]} 27... Qf1+ {[%clk 0:01:09.7]} 28. Kc2 {[%clk 0:00:03.2]} 28... Qc4+
{[%clk 0:01:05.2]} 29. Kd1 {[%clk 0:00:02.1]} 29... a5 {[%clk 0:00:58.7]} 0-1

[Event "Live Chess"]
[Site "Chess.com"]
[Date "2023.05.21"]
[Round "-"]
[White "xx_blindpuffin_xx"]
[Black "Tushinskiy"]
[Result "1-0"]
[WhiteElo "2205"]
[BlackElo "2158"]
[TimeControl "300"]
[EndTime "18:05:32 PDT"]
[Termination "xx_blindpuffin_xx won by resignation"]

1. d4 {[%clk 0:04:57.3]} 1... d5 {[%clk 0:04:58.8]} 2. Bf4 {[%clk 0:04:56.3]}
2... c6 {[%clk 0:04:58.3]} 3. e3 {[%clk 0:04:55.3]} 3... Nf6 {[%clk 0:04:57.7]}
4. Nf3 {[%clk 0:04:54.1]} 4... e6 {[%clk 0:04:56.9]} 5. Bd3 {[%clk 0:04:53]}
5... Bd6 {[%clk 0:04:56.4]} 6. Bg3 {[%clk 0:04:48.8]} 6... Qe7 {[%clk 0:04:55]}
7. Ne5 {[%clk 0:04:47]} 7... Nbd7 {[%clk 0:04:54.1]} 8. f4 {[%clk 0:04:46.2]}
8... O-O {[%clk 0:04:53.1]} 9. Nd2 {[%clk 0:04:44.2]} 9... Re8 {[%clk
0:04:51.8]} 10. O-O {[%clk 0:04:42.8]} 10... Nf8 {[%clk 0:04:50.8]} 11. Bh4
{[%clk 0:04:39.8]} 11... Ng6 {[%clk 0:04:49.7]} 12. Bg3 {[%clk 0:04:37]} 12...
Nd7 {[%clk 0:04:47.9]} 13. Qh5 {[%clk 0:04:31.7]} 13... Ndf8 {[%clk 0:04:42.6]}
14. c3 {[%clk 0:04:27.5]} 14... a6 {[%clk 0:04:36]} 15. Rae1 {[%clk 0:04:20.4]}
15... c5 {[%clk 0:04:32.4]} 16. e4 {[%clk 0:03:59.3]} 16... cxd4 {[%clk
0:04:31]} 17. exd5 {[%clk 0:03:56.4]} 17... dxc3 {[%clk 0:04:25.8]} 18. bxc3
{[%clk 0:03:52.2]} 18... Qc7 {[%clk 0:04:20.4]} 19. dxe6 {[%clk 0:03:37.6]}
19... Bxe5 {[%clk 0:04:18.8]} 20. exf7+ {[%clk 0:03:31.9]} 20... Kxf7 {[%clk
0:04:10.9]} 21. fxe5+ {[%clk 0:03:25.9]} 21... Kg8 {[%clk 0:04:09.7]} 22. Ne4
{[%clk 0:02:29.5]} 22... Be6 {[%clk 0:03:53.1]} 23. Nd6 {[%clk 0:02:27.5]} 23...
Qxc3 {[%clk 0:03:45.9]} 24. Nxe8 {[%clk 0:02:22.8]} 24... Qxd3 {[%clk
0:03:39.4]} 25. Nc7 {[%clk 0:02:15.9]} 25... Rc8 {[%clk 0:03:37.9]} 26. Nxe6
{[%clk 0:02:14.6]} 26... Nxe6 {[%clk 0:03:37.8]} 27. Qf5 {[%clk 0:02:08.6]}
27... Qc4 {[%clk 0:03:34.2]} 28. h3 {[%clk 0:01:59.3]} 28... Rf8 {[%clk
0:03:23.4]} 29. Qb1 {[%clk 0:01:58]} 29... b5 {[%clk 0:03:18.6]} 30. Rxf8+
{[%clk 0:01:53.6]} 30... Ngxf8 {[%clk 0:03:18.5]} 31. Rc1 {[%clk 0:01:50.4]}
31... Qd4+ {[%clk 0:03:12.4]} 32. Kh2 {[%clk 0:01:50]} 32... h6 {[%clk
0:03:08.8]} 33. Rc6 {[%clk 0:01:46.1]} 33... Qd5 {[%clk 0:02:54.2]} 34. Rxa6
{[%clk 0:01:40.8]} 34... Nd4 {[%clk 0:02:49]} 35. Rd6 {[%clk 0:01:37.3]} 35...
Qc4 {[%clk 0:02:44]} 36. Qe4 {[%clk 0:01:29.7]} 36... Nfe6 {[%clk 0:02:42.8]}
37. Qd5 {[%clk 0:01:22.2]} 37... Qe2 {[%clk 0:02:26.1]} 38. Rxe6 {[%clk
0:01:15.5]} 1-0

[Event "Live Chess"]
[Site "Chess.com"]
[Date "2023.05.21"]
[Round "-"]
[White "ClassyChameleon"]
[Black "peter-785"]
[Result "0-1"]
[WhiteElo "1108"]
[BlackElo "1214"]
[TimeControl "300"]
[EndTime "18:05:41 PDT"]
[Termination "peter-785 won by resignation"]

1. e4 {[%clk 0:04:58.6]} 1... c5 {[%clk 0:04:58.9]} 2. Nc3 {[%clk 0:04:56.1]}
2... d6 {[%clk 0:04:58.1]} 3. Bc4 {[%clk 0:04:55.5]} 3... e6 {[%clk 0:04:57.3]}
4. d3 {[%clk 0:04:54.9]} 4... Nf6 {[%clk 0:04:56.6]} 5. Bf4 {[%clk 0:04:54.5]}
5... Be7 {[%clk 0:04:56]} 6. Nf3 {[%clk 0:04:53.8]} 6... a6 {[%clk 0:04:55.5]}
7. O-O {[%clk 0:04:52.1]} 7... b5 {[%clk 0:04:54.8]} 8. Nxb5 {[%clk 0:04:47.9]}
8... axb5 {[%clk 0:04:52.9]} 9. Bxb5+ {[%clk 0:04:47.6]} 9... Bd7 {[%clk
0:04:49.5]} 10. Bxd7+ {[%clk 0:04:43.8]} 10... Nbxd7 {[%clk 0:04:38.8]} 11. c4
{[%clk 0:04:40]} 11... O-O {[%clk 0:04:34]} 12. e5 {[%clk 0:04:31.4]} 12... dxe5
{[%clk 0:04:32.1]} 13. Nxe5 {[%clk 0:04:30.6]} 13... Nxe5 {[%clk 0:04:30.3]} 14.
Bxe5 {[%clk 0:04:30]} 14... Nd7 {[%clk 0:04:22.9]} 15. Bc3 {[%clk 0:04:26.5]}
15... Bf6 {[%clk 0:04:20]} 16. Bxf6 {[%clk 0:04:22.9]} 16... Nxf6 {[%clk
0:04:19.5]} 17. Qb3 {[%clk 0:04:20.4]} 17... Rb8 {[%clk 0:04:15.7]} 18. Qc3
{[%clk 0:04:17.1]} 18... Qd4 {[%clk 0:04:14.8]} 19. Qxd4 {[%clk 0:04:15.5]}
19... cxd4 {[%clk 0:04:13.7]} 20. b3 {[%clk 0:04:13.5]} 20... Rb4 {[%clk
0:03:57.6]} 21. h3 {[%clk 0:04:10.5]} 21... Nd7 {[%clk 0:03:44.8]} 22. f4 {[%clk
0:04:07.1]} 22... Nc5 {[%clk 0:03:38.1]} 23. Rf3 {[%clk 0:04:04.8]} 23... Ra8
{[%clk 0:03:03.7]} 24. Kh2 {[%clk 0:03:56.1]} 24... Nxb3 {[%clk 0:03:00.3]} 25.
f5 {[%clk 0:03:38.6]} 25... e5 {[%clk 0:02:53.4]} 26. f6 {[%clk 0:03:37.2]}
26... g6 {[%clk 0:02:49.2]} 27. Kg3 {[%clk 0:03:31.9]} 27... Nxa1 {[%clk
0:02:46.3]} 0-1

[Event "Live Chess"]
[Site "Chess.com"]
[Date "2023.05.21"]
[Round "-"]
[White "jimwad"]
[Black "alanmike75"]
[Result "0-1"]
[WhiteElo "1250"]
[BlackElo "1576"]
[TimeControl "300"]
[EndTime "18:05:41 PDT"]
[Termination "alanmike75 won by resignation"]

1. c4 {[%clk 0:04:56.8]} 1... e5 {[%clk 0:04:57.8]} 2. g3 {[%clk 0:04:56]} 2...
Nf6 {[%clk 0:04:56.5]} 3. Bg2 {[%clk 0:04:55.3]} 3... d5 {[%clk 0:04:55.3]} 4.
cxd5 {[%clk 0:04:53.2]} 4... Nxd5 {[%clk 0:04:54.1]} 5. d4 {[%clk 0:04:50.6]}
5... exd4 {[%clk 0:04:46.5]} 6. Qxd4 {[%clk 0:04:49.3]} 6... Nf6 {[%clk
0:04:21.1]} 7. Qe5+ {[%clk 0:04:45]} 7... Be7 {[%clk 0:04:11.9]} 8. Nc3 {[%clk
0:04:42.7]} 8... O-O {[%clk 0:04:09.9]} 9. Nf3 {[%clk 0:04:40.5]} 9... Bd6
{[%clk 0:04:07.3]} 10. Qe3 {[%clk 0:04:37.8]} 10... Re8 {[%clk 0:04:05.3]} 11.
Qd2 {[%clk 0:04:35.7]} 11... Nc6 {[%clk 0:04:02.8]} 12. O-O {[%clk 0:04:33.3]}
12... Bg4 {[%clk 0:03:57.1]} 13. h3 {[%clk 0:03:55.8]} 13... Bh5 {[%clk
0:03:54.3]} 14. Ng5 {[%clk 0:03:49.7]} 14... Bg6 {[%clk 0:03:49.6]} 15. Re1
{[%clk 0:03:39]} 15... Qe7 {[%clk 0:03:42.7]} 16. Nf3 {[%clk 0:03:27.8]} 16...
Rad8 {[%clk 0:03:40.5]} 17. Qc2 {[%clk 0:03:25.1]} 17... Bxc2 {[%clk 0:03:29.9]}
0-1

[Event "Live Chess"]
[Site "Chess.com"]
[Date "2023.05.21"]
[Round "-"]
[White "chessfiction"]
[Black "Hussamalhaidar"]
[Result "1-0"]
[WhiteElo "2347"]
[BlackElo "1091"]
[TimeControl "300"]
[EndTime "18:05:44 PDT"]
[Termination "chessfiction won by checkmate"]

1. e4 {[%clk 0:04:58.1]} 1... e5 {[%clk 0:04:53.4]} 2. f4 {[%clk 0:04:56.8]}
2... Nc6 {[%clk 0:04:46.9]} 3. Nf3 {[%clk 0:04:56.7]} 3... d5 {[%clk 0:04:42.1]}
4. Nc3 {[%clk 0:04:53.8]} 4... Bg4 {[%clk 0:04:25.9]} 5. exd5 {[%clk 0:04:51.6]}
5... Bxf3 {[%clk 0:04:20.5]} 6. Qxf3 {[%clk 0:04:49.6]} 6... Nd4 {[%clk
0:04:19.1]} 7. Qe4 {[%clk 0:04:45.2]} 7... Bc5 {[%clk 0:03:59.5]} 8. Qxe5+
{[%clk 0:04:39.5]} 8... Ne7 {[%clk 0:03:54.7]} 9. Bd3 {[%clk 0:04:32.2]} 9...
O-O {[%clk 0:03:24.8]} 10. Ne4 {[%clk 0:04:30]} 10... Nxd5 {[%clk 0:03:09.2]}
11. Nxc5 {[%clk 0:04:18.7]} 11... Re8 {[%clk 0:03:00.2]} 12. O-O {[%clk
0:04:15.3]} 12... Rxe5 {[%clk 0:02:58.2]} 13. fxe5 {[%clk 0:04:15.2]} 13... b6
{[%clk 0:02:53.2]} 14. Ne4 {[%clk 0:04:08.6]} 14... c5 {[%clk 0:02:50.7]} 15. c3
{[%clk 0:04:06.6]} 15... Ne6 {[%clk 0:02:38.9]} 16. Nd6 {[%clk 0:04:04.7]} 16...
Nef4 {[%clk 0:02:25.3]} 17. Be4 {[%clk 0:04:00.2]} 17... Ne2+ {[%clk 0:02:15.2]}
18. Kh1 {[%clk 0:03:58.2]} 18... Nef4 {[%clk 0:01:42.7]} 19. d4 {[%clk
0:03:54.6]} 19... cxd4 {[%clk 0:01:37.3]} 20. Bxf4 {[%clk 0:03:52.7]} 20... Nxf4
{[%clk 0:01:35.2]} 21. Rxf4 {[%clk 0:03:51.8]} 21... f6 {[%clk 0:01:32]} 22.
Bd5+ {[%clk 0:03:49.5]} 22... Kf8 {[%clk 0:01:27.9]} 23. Bxa8 {[%clk 0:03:46.8]}
23... Qxa8 {[%clk 0:01:22.7]} 24. cxd4 {[%clk 0:03:44.5]} 24... Qd5 {[%clk
0:01:14.3]} 25. Raf1 {[%clk 0:03:42.4]} 25... a5 {[%clk 0:01:06.2]} 26. Ne4
{[%clk 0:03:40.4]} 26... Qxd4 {[%clk 0:01:01.3]} 27. exf6 {[%clk 0:03:36.9]}
27... Qxb2 {[%clk 0:00:53.9]} 28. fxg7+ {[%clk 0:03:34.1]} 28... Kxg7 {[%clk
0:00:52.2]} 29. Rf7+ {[%clk 0:03:33.2]} 29... Kg6 {[%clk 0:00:50.4]} 30. R1f6+
{[%clk 0:03:28.8]} 30... Kh5 {[%clk 0:00:46.8]} 31. Rxh7+ {[%clk 0:03:25.8]}
31... Kg4 {[%clk 0:00:41.7]} 32. h3# {[%clk 0:03:24.9]} 1-0

[Event "Live Chess"]
[Site "Chess.com"]
[Date "2023.05.21"]
[Round "-"]
[White "ThatGuyNamedJeff"]
[Black "GEMdzq"]
[Result "0-1"]
[WhiteElo "1571"]
[BlackElo "2269"]
[TimeControl "300"]
[EndTime "18:05:50 PDT"]
[Termination "GEMdzq won by resignation"]

1. e4 {[%clk 0:04:59.7]} 1... d6 {[%clk 0:04:58.8]} 2. d4 {[%clk 0:04:57.8]}
2... Nf6 {[%clk 0:04:58.4]} 3. Nc3 {[%clk 0:04:57]} 3... g6 {[%clk 0:04:57.3]}
4. Be3 {[%clk 0:04:56.2]} 4... Bg7 {[%clk 0:04:56.2]} 5. Qd2 {[%clk 0:04:55.6]}
5... c6 {[%clk 0:04:55.4]} 6. Bh6 {[%clk 0:04:54.3]} 6... Bxh6 {[%clk
0:04:53.2]} 7. Qxh6 {[%clk 0:04:53.5]} 7... Qa5 {[%clk 0:04:46.4]} 8. O-O-O
{[%clk 0:04:48.9]} 8... Nbd7 {[%clk 0:04:37.7]} 9. Nf3 {[%clk 0:04:38.8]} 9...
b5 {[%clk 0:04:35.6]} 10. Ng5 {[%clk 0:04:14.5]} 10... b4 {[%clk 0:04:31.7]} 11.
Qg7 {[%clk 0:04:13.3]} 11... Rf8 {[%clk 0:04:30.4]} 12. Bc4 {[%clk 0:02:43.5]}
12... Qxg5+ {[%clk 0:04:17.5]} 0-1

[Event "Live Chess"]
[Site "Chess.com"]
[Date "2023.05.21"]
[Round "-"]
[White "sanjesh_ananda"]
[Black "domrobson"]
[Result "0-1"]
[WhiteElo "1337"]
[BlackElo "1735"]
[TimeControl "300"]
[EndTime "18:06:20 PDT"]
[Termination "domrobson won on time"]

1. e4 {[%clk 0:04:54.9]} 1... e5 {[%clk 0:04:58.9]} 2. Nf3 {[%clk 0:04:53.8]}
2... Nc6 {[%clk 0:04:58.3]} 3. Bc4 {[%clk 0:04:50.3]} 3... Nf6 {[%clk
0:04:57.5]} 4. Nc3 {[%clk 0:04:41.7]} 4... Nxe4 {[%clk 0:04:55.5]} 5. Nxe4
{[%clk 0:04:39.2]} 5... d5 {[%clk 0:04:54.5]} 6. Bxd5 {[%clk 0:04:23.8]} 6...
Qxd5 {[%clk 0:04:53.1]} 7. Nc3 {[%clk 0:04:22.1]} 7... Qd8 {[%clk 0:04:50.7]} 8.
O-O {[%clk 0:04:11.9]} 8... Be7 {[%clk 0:04:47.2]} 9. Re1 {[%clk 0:04:05]} 9...
Bg4 {[%clk 0:04:45]} 10. h3 {[%clk 0:04:03.5]} 10... Bh5 {[%clk 0:04:42.8]} 11.
g4 {[%clk 0:03:59.1]} 11... Bg6 {[%clk 0:04:41.5]} 12. Nxe5 {[%clk 0:03:49.4]}
12... Nxe5 {[%clk 0:04:40.6]} 13. Rxe5 {[%clk 0:03:47.9]} 13... O-O {[%clk
0:04:39.8]} 14. d3 {[%clk 0:03:16.7]} 14... Bf6 {[%clk 0:04:36.7]} 15. Re1
{[%clk 0:03:08.9]} 15... Bd4 {[%clk 0:04:32.9]} 16. Ne2 {[%clk 0:03:00.7]} 16...
Bb6 {[%clk 0:04:29.4]} 17. Nf4 {[%clk 0:02:50]} 17... Qh4 {[%clk 0:04:22]} 18.
Be3 {[%clk 0:02:35]} 18... Bxe3 {[%clk 0:04:19.1]} 19. Rxe3 {[%clk 0:02:31.4]}
19... Rae8 {[%clk 0:04:17.2]} 20. Ng2 {[%clk 0:02:00.9]} 20... Qd8 {[%clk
0:04:04.3]} 21. Rg3 {[%clk 0:01:53.5]} 21... Re7 {[%clk 0:03:54.1]} 22. h4
{[%clk 0:01:50.5]} 22... f5 {[%clk 0:03:50.4]} 23. g5 {[%clk 0:01:29.5]} 23...
f4 {[%clk 0:03:48.2]} 24. Rh3 {[%clk 0:01:10.5]} 24... Qd7 {[%clk 0:03:40.1]}
25. Kh2 {[%clk 0:00:58.6]} 25... Bf5 {[%clk 0:03:35]} 26. Nxf4 {[%clk
0:00:08.4]} 26... Bxh3 {[%clk 0:03:32.4]} 27. Nxh3 {[%clk 0:00:06.9]} 27... Ref7
{[%clk 0:03:29.1]} 28. Qe2 {[%clk 0:00:01.5]} 28... Rf3 {[%clk 0:03:26.7]} 0-1

[Event "Live Chess"]
[Site "Chess.com"]
[Date "2023.05.21"]
[Round "-"]
[White "whatnot126"]
[Black "romchyk1219"]
[Result "1-0"]
[WhiteElo "2055"]
[BlackElo "633"]
[TimeControl "300"]
[EndTime "18:06:27 PDT"]
[Termination "whatnot126 won by resignation"]

1. e4 {[%clk 0:04:52.2]} 1... d6 {[%clk 0:04:59]} 2. d4 {[%clk 0:04:50.7]} 2...
Nf6 {[%clk 0:04:58.1]} 3. Nc3 {[%clk 0:04:49.7]} 3... g6 {[%clk 0:04:57.5]} 4.
Bg5 {[%clk 0:04:47.5]} 4... Bg7 {[%clk 0:04:55.9]} 5. e5 {[%clk 0:04:44.4]} 5...
dxe5 {[%clk 0:04:54.9]} 6. dxe5 {[%clk 0:04:44.3]} 6... Nfd7 {[%clk 0:04:52.9]}
7. Nd5 {[%clk 0:04:31]} 7... Nxe5 {[%clk 0:04:43.6]} 8. Bxe7 {[%clk 0:04:05]}
8... Qd7 {[%clk 0:04:34.3]} 9. Ba3 {[%clk 0:03:57.9]} 9... Nc4 {[%clk
0:04:28.6]} 10. Bxc4 {[%clk 0:03:52.9]} 10... c6 {[%clk 0:04:17.9]} 11. Qe2+
{[%clk 0:03:44.2]} 11... Kd8 {[%clk 0:04:11.3]} 12. Be7+ {[%clk 0:03:41.4]}
12... Ke8 {[%clk 0:04:04.9]} 13. Nf6+ {[%clk 0:03:36.8]} 13... Bxf6 {[%clk
0:04:03.4]} 14. Bxf6+ {[%clk 0:03:36.7]} 14... Kf8 {[%clk 0:03:59.4]} 15. Bxh8
{[%clk 0:03:34.3]} 15... Qd4 {[%clk 0:03:43.1]} 16. Bxd4 {[%clk 0:03:31.3]} 1-0

[Event "Live Chess"]
[Site "Chess.com"]
[Date "2023.05.21"]
[Round "-"]
[White "therealab0ne"]
[Black "raminguy"]
[Result "0-1"]
[WhiteElo "717"]
[BlackElo "1940"]
[TimeControl "300"]
[EndTime "18:06:41 PDT"]
[Termination "raminguy won on time"]

1. e4 {[%clk 0:04:55.3]} 1... e5 {[%clk 0:04:59.1]} 2. Bc4 {[%clk 0:04:54]} 2...
Nc6 {[%clk 0:04:58.3]} 3. Nc3 {[%clk 0:04:52.7]} 3... Nf6 {[%clk 0:04:57.3]} 4.
d3 {[%clk 0:04:51.7]} 4... Na5 {[%clk 0:04:56.4]} 5. Nf3 {[%clk 0:04:40.5]} 5...
Nxc4 {[%clk 0:04:55.2]} 6. dxc4 {[%clk 0:04:39.7]} 6... Bb4 {[%clk 0:04:50.4]}
7. Bd2 {[%clk 0:04:33.8]} 7... O-O {[%clk 0:04:47.2]} 8. Nxe5 {[%clk 0:04:32.3]}
8... Re8 {[%clk 0:04:45.8]} 9. Nd3 {[%clk 0:04:17.1]} 9... Bxc3 {[%clk
0:04:43.9]} 10. Bxc3 {[%clk 0:04:12.4]} 10... Nxe4 {[%clk 0:04:43.1]} 11. O-O
{[%clk 0:04:08.3]} 11... Nxc3 {[%clk 0:04:41.6]} 12. bxc3 {[%clk 0:04:07.8]}
12... d6 {[%clk 0:04:39.1]} 13. Re1 {[%clk 0:04:00.6]} 13... Be6 {[%clk
0:04:36.4]} 14. c5 {[%clk 0:03:54.9]} 14... d5 {[%clk 0:04:33.7]} 15. c4 {[%clk
0:03:53.4]} 15... dxc4 {[%clk 0:04:31.8]} 16. Ne5 {[%clk 0:03:47.2]} 16... Qxd1
{[%clk 0:04:16.7]} 17. Raxd1 {[%clk 0:03:46]} 17... Rad8 {[%clk 0:04:15]} 18. h3
{[%clk 0:03:16.6]} 18... Kf8 {[%clk 0:04:08.9]} 19. a4 {[%clk 0:02:45.9]} 19...
b6 {[%clk 0:04:05.8]} 20. cxb6 {[%clk 0:02:41.6]} 20... cxb6 {[%clk 0:03:53.1]}
21. Nc6 {[%clk 0:02:35.3]} 21... Ra8 {[%clk 0:03:48.3]} 22. Kf1 {[%clk
0:02:02.1]} 22... Rec8 {[%clk 0:03:43.1]} 23. Nd4 {[%clk 0:02:00.6]} 23... Re8
{[%clk 0:03:32.1]} 24. Nxe6+ {[%clk 0:01:52.1]} 24... Rxe6 {[%clk 0:03:24.3]}
25. Rd7 {[%clk 0:01:37.7]} 25... Rxe1+ {[%clk 0:03:17.8]} 26. Kxe1 {[%clk
0:01:36.8]} 26... a6 {[%clk 0:03:16.4]} 27. Kd2 {[%clk 0:01:29.5]} 27... Rb8
{[%clk 0:03:11.4]} 28. Kc3 {[%clk 0:01:25.6]} 28... b5 {[%clk 0:03:10]} 29. axb5
{[%clk 0:01:24.2]} 29... axb5 {[%clk 0:03:09.9]} 30. Kb4 {[%clk 0:01:20.2]}
30... g6 {[%clk 0:03:06.2]} 31. Rd5 {[%clk 0:01:05]} 31... Re8 {[%clk
0:02:54.8]} 32. g4 {[%clk 0:00:38]} 32... Re2 {[%clk 0:02:53.1]} 33. f4 {[%clk
0:00:34]} 33... Rxc2 {[%clk 0:02:51.5]} 34. Kxb5 {[%clk 0:00:24.8]} 34... c3
{[%clk 0:02:49.6]} 35. f5 {[%clk 0:00:22.2]} 35... gxf5 {[%clk 0:02:43.7]} 36.
Rxf5 {[%clk 0:00:17]} 36... Rc1 {[%clk 0:02:42.4]} 37. Rf2 {[%clk 0:00:14.7]}
37... c2 {[%clk 0:02:40.6]} 38. Kb4 {[%clk 0:00:08.6]} 38... Rb1+ {[%clk
0:02:37.7]} 39. Kc3 {[%clk 0:00:07.5]} 39... c1=Q+ {[%clk 0:02:37.6]} 40. Rc2
{[%clk 0:00:05.4]} 40... Qe3+ {[%clk 0:02:35.1]} 41. Kc4 {[%clk 0:00:02.3]}
41... Qxh3 {[%clk 0:02:33.2]} 0-1

[Event "Live Chess"]
[Site "Chess.com"]
[Date "2023.05.21"]
[Round "-"]
[White "jimwad"]
[Black "chessfiction"]
[Result "0-1"]
[WhiteElo "1250"]
[BlackElo "2347"]
[TimeControl "300"]
[EndTime "18:07:01 PDT"]
[Termination "chessfiction won by resignation"]

1. c4 {[%clk 0:04:58.3]} 1... d5 {[%clk 0:04:59.1]} 2. cxd5 {[%clk 0:04:57]}
2... c6 {[%clk 0:04:58.8]} 3. Nc3 {[%clk 0:04:56.2]} 3... Nf6 {[%clk 0:04:57.3]}
4. dxc6 {[%clk 0:04:55]} 4... e5 {[%clk 0:04:56.5]} 5. e4 {[%clk 0:04:52.9]}
5... Bc5 {[%clk 0:04:55.4]} 6. Nf3 {[%clk 0:04:44.5]} 6... Qb6 {[%clk
0:04:53.8]} 7. Qe2 {[%clk 0:04:41.1]} 7... Nxc6 {[%clk 0:04:49.3]} 8. Nd5 {[%clk
0:04:35.9]} 8... Nxd5 {[%clk 0:04:46.5]} 9. exd5 {[%clk 0:04:34.8]} 9... Nb4
{[%clk 0:04:46.3]} 10. Qxe5+ {[%clk 0:04:32.4]} 10... Kd8 {[%clk 0:04:45.2]} 11.
Qe2 {[%clk 0:04:23.8]} 11... Re8 {[%clk 0:04:43.2]} 12. Qxe8+ {[%clk 0:04:21.6]}
12... Kxe8 {[%clk 0:04:41.1]} 13. d4 {[%clk 0:04:15.1]} 13... Nc2+ {[%clk
0:04:39.6]} 0-1